Cogmind - Beta 16.1 @@@ ROGUE MODE // 2026.04.16 @ 21:49:25 Player: Shimejimeji Result: Destroyed by Y-54 Guardian with Flak Gun Performance ------------- Evolutions (0) 0 Regions Visited (3) 600 Robots Destroyed (52) 260 Value Destroyed (1253) 1253 Prototype IDs (14) 280 Alien Tech Used (0) 0 Bonus (0) 0 TOTAL SCORE: 2393 Bonus ------- None Cogmind --------- Core Integrity 0/250 Matter 300/300 Energy 280/280 System Corruption 12% Temperature Cool (12) Movement Treading (240) Ox1 Location -7/Recycling Parts ------- > --- POWER (1) -------- Cooled Ion Engine > --- PROPULSION (2) --- Improved Treads Improved Treads > --- UTILITY (2) ------ Large Storage Unit Reactive Plating > --- WEAPON (2) ------- Subdweller Beam Cannon Subdweller Beam Cannon > --- INVENTORY (15) --- Spiked Treads Makeshift Light Armor Plating Gun Armor Hacking Suite Light EM Pulse Cannon Light EM Pulse Cannon Subdweller Beam Cannon Subdweller Beam Cannon Mini Grenade Launcher Mini Grenade Launcher Subdweller Shrapnel Launcher Heavy Rocket Launcher Dirty Datajack (15) Remote Datajack Peak State ------------ > --- POWER ------------ Light Nuclear Core > --- PROPULSION ------- Improved Treads Improved Treads > --- UTILITY ---------- Large Storage Unit Improved Sensor Array > --- WEAPON ----------- Subdweller Beam Cannon Dirty Datajack > --- INVENTORY -------- Cooled Ion Engine Improved Treads Spiked Treads Makeshift Light Armor Plating Gun Armor Hacking Suite Light EM Pulse Cannon Light EM Pulse Cannon Subdweller Beam Cannon Subdweller Beam Cannon Subdweller Beam Cannon Mini Grenade Launcher Mini Grenade Launcher Subdweller Shrapnel Launcher Heavy Rocket Launcher [Rating: 23] Favorites ----------- Power Cooled Ion Engine Engine Cooled Ion Engine Power Core Light Nuclear Core Propulsion Improved Treads Treads Improved Treads Wheel Compact Wheel Utility Large Storage Unit Device Seismic Detector Storage Large Storage Unit Processor Transport Network Coupler Protection Makeshift Light Armor Plating Weapon Subdweller Beam Cannon Energy Cannon Subdweller Beam Cannon Ballistic Gun Assault Rifle Launcher Mini Grenade Launcher Special Weapon Mining Laser Special Melee Weapon Dirty Datajack Build | -11 -10 -10 -7 ------- Run | Yrd Mat Sub Rec Slots Evolved . | . . . . Power . | . . . . Propulsion . | . . . . Utility . | . . . . Weapon . | . . . . Parts Attached 43 | 9 12 17 5 Power 7 | 1 3 2 1 Engine 6 | 1 3 1 1 Core 1 | . . 1 . Reactor . | . . . . Propulsion 8 | 4 1 2 1 Treads 6 | 2 1 2 1 Leg . | . . . . Wheel 2 | 2 . . . Hover . | . . . . Flight . | . . . . Utility 10 | 2 3 3 2 Device 3 | 1 . 1 1 Storage 3 | 1 2 . . Processor 1 | . 1 . . Hackware . | . . . . Protection 3 | . . 2 1 Artifact . | . . . . Weapon 18 | 2 5 10 1 Energy Gun . | . . . . Energy Cannon 10 | . 4 6 . Ballistic Gun 4 | 2 . 2 . Ballistic Cannon . | . . . . Launcher 2 | . . 2 . Special Weapon 1 | . 1 . . Impact Weapon . | . . . . Slashing Weapon . | . . . . Piercing Weapon . | . . . . Special Melee Weapon 1 | . . . 1 Unidentified Prototypes 1 | . 1 . . Corrupted Parts 1 | . 1 . . System Corruption 10 | . 10 . . Parts Lost 9 | . 2 5 2 Power 3 | . 1 1 1 Propulsion 3 | . . 2 1 Utility 2 | . . 2 . Weapon 1 | . 1 . . Highest Loss Streak 2 | . 1 2 1 To Critical Strikes . | . . . . Average Backups 12 | 3 9 14 14 Power 1 | . 1 1 . Propulsion 2 | 1 2 2 1 Utility 2 | . 1 2 2 Weapon 6 | 1 4 7 8 Tool/Special . | . . . . Unused Backups 13 | . 3 5 5 Power . | . . . . Propulsion 2 | . . 1 1 Utility 2 | . . . 2 Weapon 9 | . 3 4 2 Tool/Special . | . . . . Average Slot Usage (%) 99 | . 99 100 100 Engine 10 | . 14 9 4 Core 3 | . . 4 10 Treads 27 | . 27 28 28 Device 12 | . 14 11 11 Storage 14 | . 14 14 14 Protection 1 | . . 2 2 Energy Cannon 18 | . 17 17 27 Ballistic Gun 6 | . 9 4 . Special Weapon 2 | . . 3 . Peak Build Rating 23 | 7 14 20 23 Average Rating 14 | 5 11 16 19 On Entrance 10 | . 7 14 20 Avg Prop Armor Cover (%) . | . . . . Naked Turns . | . . . . Heaviest Build 54 | 13 37 45 54 Greatest Support 46 | 40 43 46 46 Greatest Overweight (x) 1 | . 1 . 1 Average Overweight (x) . | . . . . Largest Inventory Capacity 25 | 8 25 15 15 Average Capacity 13 | 7 11 15 15 Most Carried 15 | 5 15 15 15 Average Carried 12 | 4 9 14 14 Final Capacity 15 | 8 15 15 15 Final Carried 14 | 5 14 14 14 Class Distribution -------------------- 100% | Mutant Dominant Class ---------------- Mutant | -10/Materials Mutant | -10/Subcaves Mutant | -7/Recycling Resources | -11 -10 -10 -7 ----------- Run | Yrd Mat Sub Rec Matter Collected 1603 | 354 392 648 209 Remotely . | . . . . Salvage Created 1618 | 181 734 573 130 Parts 97 | 18 40 33 6 Haulers Intercepted 2 | . 2 . . Recyclers Shooed 2 | 1 1 . . Parts Field Recycled . | . . . . Retrieved Matter . | . . . . Parts Self-Destructed 5 | . . 5 . Prevented . | . . . . Parts Restored . | . . . . Kills | -11 -10 -10 -7 ------- Run | Yrd Mat Sub Rec Combat Hostiles Destroyed 36 | . 15 18 3 Guns 13 | . 10 3 . Cannons 16 | . 5 8 3 AOE 6 | . . 6 . Classes Destroyed 12 | 3 5 3 1 Worker 2 | 1 1 . . Tunneler 5 | 5 . . . Hauler 2 | . 2 . . Recycler 2 | 1 1 . . Operator 2 | . 2 . . Turret 2 | . . 2 . Watcher 1 | . 1 . . Swarmer 13 | . 6 7 . Grunt 9 | . 9 . . Programmer 3 | . . . 3 Cobbler 1 | . . 1 . Subdweller 11 | . . 11 . Best Kill Streak 6 | 4 3 6 2 Combat Bots Only 4 | . 3 4 2 Max Kills in Single Turn 3 | 2 2 3 1 Gunslinging . | . . . . Exploded 3 | . . 3 . Melee . | . . . . Uniques/NPCs Destroyed . | . . . . Combat | -11 -10 -10 -7 -------- Run | Yrd Mat Sub Rec Hostile Shots Fired 190 | . 76 90 24 Missed 52 | . 25 21 6 Hits 138 | . 51 69 18 Projectile 138 | . 51 69 18 Critical Strikes 1 | . . 1 . Damage Taken 1908 | . 646 1036 226 Core 253 | . 75 127 51 Absorbed by Shields 118 | . . 118 . Ignored by Resistances 4 | . . . 4 Core Remaining (%) 100 | 100 . . . Volleys Fired 135 | 14 54 60 7 Largest 2 | 2 2 2 2 Hottest 160 | 40 112 160 160 Shots Fired 245 | 28 102 101 14 Gun 101 | 28 56 17 . Cannon 108 | . 42 52 14 Launcher 10 | . . 10 . Special 26 | . 4 22 . Kinetic 101 | 28 56 17 . Thermal 91 | . 4 73 14 Explosive 10 | . . 10 . Electromagnetic 43 | . 42 1 . Robot Hit Streak 18 | 4 8 18 12 Robot Miss Streak 3 | 3 3 2 2 Penetration Max . | . . . . Secondary Targets 1 | . 1 . . Max Gunslinging Chain 1 | . 1 . . Shots Hit Robots 137 | 15 64 42 16 Core Hits 70 | 8 27 29 6 Critical Kills 2 | . 1 1 . Critical Parts Destroyed . | . . . . Critical Strikes 3 | . 2 1 . Meltdown 1 | . . 1 . Destroy 1 | . 1 . . Corrupt 1 | . 1 . . Melee Attacks 5 | . . . 5 Impact . | . . . . Slashing . | . . . . Piercing 5 | . . . 5 Sneak Attacks 1 | . . . 1 Combat Hostiles . | . . . . Follow-up Attacks . | . . . . Damage Inflicted 3528 | 204 1332 1570 422 Guns 851 | 204 468 179 . Cannons 1879 | . 715 758 406 Explosions 782 | . 149 633 . Melee 16 | . . . 16 Ramming . | . . . . Kinetic 851 | 204 468 179 . Thermal 1313 | . 149 758 406 Explosive 633 | . . 633 . Electromagnetic 715 | . 715 . . Impact . | . . . . Slashing . | . . . . Piercing 16 | . . . 16 Highest Corruption 12 | . 11 11 12 Average Corruption 8 | . 3 11 11 Corruption Purged . | . . . . Corruption Blocked . | . . . . Effects 123 | . 16 95 12 Message Errors 27 | . 2 23 2 Matter Fused 31 | . 6 24 1 Heat Flow Errors 17 | . 3 13 1 Energy Discharges 13 | . 2 9 2 Parts Fused 1 | . . 1 . Data Loss (minor) 18 | . 2 13 3 Data Loss (major) 5 | . 1 3 1 Misfires 6 | . . 5 1 Alerts 3 | . . 3 . Weapon Failures 2 | . . 1 1 Overload Shots . | . . . . Overflow Damage 61 | . . 12 49 Projectiles 49 | . . . 49 Explosions 12 | . . 12 . Melee . | . . . . Knockbacks . | . . . . Impact . | . . . . Kinetic . | . . . . Secondary . | . . . . Self-Inflicted Damage 75 | . 38 37 . Shots 2 | . 1 1 . Rammed . | . . . . Targets Rammed . | . . . . Kicked . | . . . . Crushed . | . . . . Highest Temperature 332 | . 255 269 332 Average Temperature 94 | . 72 97 137 Received Heat Transfer 413 | . 171 230 12 Effects 2 | . . . 2 Interference 2 | . . . 2 Siege Activations . | . . . . Martial Activations . | . . . . Shielding Activations . | . . . . Robots Disrupted . | . . . . Combat Hostiles . | . . . . Robots Corrupted 2 | . 2 . . Combat Hostiles . | . . . . Parts Fried 8 | . 8 . . Impact Corruptions . | . . . . Robots Melted 1 | . . 1 . Combat Hostiles 1 | . . 1 . Parts Melted 7 | . . 6 1 Heat Transferred 1617 | . 100 1036 481 Parts Sabotaged . | . . . . Parts Stolen . | . . . . Parts Stripped . | . . . . Power Chain Reactions 1 | . 1 . . Alert | -11 -10 -10 -7 ------- Run | Yrd Mat Sub Rec Maximum Alert Level . | . . . . Low Security (%) 100 | 100 100 . 100 Level 1 . | . . . . Level 2 . | . . . . Level 3 . | . . . . Level 4 . | . . . . Level 5 . | . . . . High Security . | . . . . Max Security . | . . . . Peak Influence 152 | 15 152 . 84 Initial 68 | . 3 . 68 Average 48 | 3 56 . 33 Influence Increases 819 | 35 472 235 77 Destroy 0b10 Robot/C 540 | . 300 180 60 Destroy 0b10 Robot/NC 70 | 35 35 . . Destroy Leader 66 | . 56 10 . Successful Hack 53 | . 37 . 16 Disable Machine 15 | . 15 . . Destroy Structure 15 | . 14 . 1 Lose Combat Pursuer 60 | . 15 45 . Influence Decreases 808 | 30 477 92 209 Entered New Map 77 | . 2 . 75 Time Decay 685 | 30 455 76 124 Lost Part 46 | . 20 16 10 Squads Dispatched 2 | . 2 . . Investigation . | . . . . Extermination . | . . . . Reinforcement 2 | . 2 . . Assault . | . . . . Garrison . | . . . . Intercept . | . . . . Searches Triggered . | . . . . Construction Impeded . | . . . . Haulers Reinforced . | . . . . Active Scanning Responses . | . . . . Cargo Convoy Interrupts . | . . . . Stealth | -11 -10 -10 -7 --------- Run | Yrd Mat Sub Rec Distress Signals 3 | . 2 . 1 Communications Jammed . | . . . . Distress Signals . | . . . . Times Spotted 58 | . 32 22 4 Peak Tracking Total 6 | . 4 6 2 Tactical Retreats 2 | . 1 1 . Traps | -11 -10 -10 -7 ------- Run | Yrd Mat Sub Rec Traps Triggered 5 | . 2 3 . Indirectly . | . . . . Trap Hack Attempts . | . . . . Triggered . | . . . . Disarmed . | . . . . Reprogrammed . | . . . . Reused . | . . . . Traps Extracted . | . . . . Installed . | . . . . Triggered . | . . . . Machines | -11 -10 -10 -7 ---------- Run | Yrd Mat Sub Rec Machines Disabled 6 | . 1 5 . Max in Single Turn 4 | . 1 4 . Machines Repaired . | . . . . Machines Dismantled . | . . . . Machines Sabotaged . | . . . . Overloaded Fab Kills . | . . . . Hacking | -11 -10 -10 -7 --------- Run | Yrd Mat Sub Rec Machines Accessed 8 | . 4 2 2 Terminals 5 | . 4 . 1 Fabricators . | . . . . Repair Stations . | . . . . Recycling Units 1 | . . . 1 Scanalyzers . | . . . . Garrison Access . | . . . . Total Hacks 24 | . 14 4 6 Successful 18 | . 9 4 5 Failed 6 | . 5 . 1 Catastrophic 2 | . 2 . . Database Lockouts . | . . . . Manual 15 | . 13 . 2 Terminals 18 | . 14 . 4 Fabricators . | . . . . Repair Stations . | . . . . Recycling Units 2 | . . . 2 Scanalyzers . | . . . . Garrison Access . | . . . . Terminal Hacks 11 | . 5 4 2 Record 3 | . . 3 . Branch Access Points 1 | . 1 . . Terminal Index 2 | . 1 . 1 Transport Status 1 | . 1 . . Hauler Manifests 1 | . 1 . . Zone Layout 2 | . 1 . 1 Proto ID Catalog 1 | . . 1 . Fabricator Hacks . | . . . . Repair Station Hacks . | . . . . Recycling Unit Hacks 2 | . . . 2 Report Inventory 1 | . . . 1 Retrieve Components 1 | . . . 1 Scanalyzer . | . . . . Garrison Access Hacks . | . . . . Unauthorized Hacks 5 | . 4 . 1 Terminals 5 | . 4 . 1 Assimilate 1 | . 1 . . Botnet 3 | . 2 . 1 Operators 1 | . 1 . . Fabricators . | . . . . Repair Stations . | . . . . Recycling Units . | . . . . Scanalyzers . | . . . . Garrison Access . | . . . . Data Cores Recovered . | . . . . Used . | . . . . Hacking Detections 5 | . 4 . 1 Full Trace Events 1 | . 1 . . Feedback Events . | . . . . Feedback Blocked . | . . . . Robot Schematics Acquired . | . . . . Robots Built . | . . . . Authchips . | . . . . Time . | . . . . Total Robot Build Rating . | . . . . Part Schematics Acquired . | . . . . Parts Built . | . . . . Authchips . | . . . . Time . | . . . . Total Part Build Rating . | . . . . Part Studies Acquired . | . . . . Parts Repaired . | . . . . Time . | . . . . Parts Recycled . | . . . . Recycled Matter . | . . . . Retrieved Matter . | . . . . Retrieved Components 3 | . . . 3 Parts Scanalyzed . | . . . . Part Schematics Acquired . | . . . . Parts Damaged . | . . . . Bothacking | -11 -10 -10 -7 ------------ Run | Yrd Mat Sub Rec Used RIF Installer . | . . . . Robots Hacked . | . . . . Non-combat . | . . . . Combat . | . . . . Robot Hacks Applied . | . . . . Relay Couplers Released . | . . . . Fabnet Peak Effective % . | . . . . Robots Rewired . | . . . . Allies Hacked . | . . . . Hacks Repelled . | . . . . Allies | -11 -10 -10 -7 -------- Run | Yrd Mat Sub Rec Total Allies . | . . . . Largest Group . | . . . . Highest-Rated Group . | . . . . Highest-Rated Ally . | . . . . Total Orders . | . . . . Ally Attacks . | . . . . Total Damage . | . . . . Kills . | . . . . Allies Corrupted . | . . . . Allies Melted . | . . . . Intel | -11 -10 -10 -7 ------- Run | Yrd Mat Sub Rec Active Infowar (turns) 3439 | 55 1348 1857 179 Sensors 179 | . . . 179 Seismic 3258 | 55 1346 1857 . T.N.C. 2 | . 2 . . Robot Analysis Total . | . . . . Derelict Logs Recovered 1 | . . 1 . Drone Launches . | . . . . Drone Recoveries . | . . . . Exploration | -11 -10 -10 -7 ------------- Run | Yrd Mat Sub Rec Turns Passed 4193 | 159 1348 2415 271 Spaces Moved 2203 | 107 660 1293 143 Core 1 | 1 . . . Treads 2098 | 2 660 1293 143 Legs . | . . . . Wheels 104 | 104 . . . Hover . | . . . . Flight . | . . . . Fastest Speed 50 | 50 160 160 160 Average Speed 157 | 92 160 160 162 Slowest Speed 240 | 160 240 160 240 Overloaded Moves . | . . . . Propulsion Burnouts . | . . . . Robots Hopped . | . . . . Potential Cave-ins . | . . . . Cave-ins Triggered . | . . . . Exploration Rate (%) 50 | 4 86 72 40 Regions Visited 3 Branch Regions 2 Pre-discovered Areas 1 | . . 1 . Known Exits Taken . | . . . . Unknown Exits Taken 3 | 1 1 1 . Scrap Searched 14 | . . 14 . Spaces Dug 3 | . 3 . . Terrain Destroyed 59 | . 13 46 . Melee . | . . . . Projectile 8 | . 3 5 . AOE 51 | . 10 41 . Terrain Rammed . | . . . . Walls Destroyed . | . . . . Machines Disabled . | . . . . Actions | -11 -10 -10 -7 --------- Run | Yrd Mat Sub Rec Total 2623 | 135 838 1481 169 Wait 141 | . 79 60 2 Move 2200 | 106 659 1292 143 Hop . | . . . . Pick Up 37 | 6 16 12 3 Fast Attach 9 | 6 3 . . Attach 10 | 1 2 5 2 Detach . | . . . . Swap 62 | 2 14 40 6 Drop 24 | . 11 12 1 Fire 135 | 14 54 60 7 Melee 5 | . . . 5 Ram . | . . . . Kick . | . . . . Crush . | . . . . Escape Stasis . | . . . . Rewire . | . . . . Trap . | . . . . Miscellaneous . | . . . . Route ------- -11/Scrapyard -10/Materials (discovered 5 exits: [*Mat x2] / *Min x2 / *Sub) -10/Subcaves (discovered 3 exits: [*Mat x2] / *Rec) -7/Recycling History --------- Turn | Location | Event 31 | -11/Scrapyard | Discovered new exit (range 15) 160 | -11/Scrapyard | Entered Materials 317 | -10/Materials | Build established: Mutant 367 | -10/Materials | Discovered new exit (range 14) 367 | -10/Materials | Discovered new exit (range 15) 367 | -10/Materials | Identified exit to Mines 1023 | -10/Materials | Discovered new exit (range 13) 1301 | -10/Materials | System corruption reached 10% 1364 | -10/Materials | Discovered new exit (range 7) 1508 | -10/Materials | Entered Subcaves 1509 | -10/Subcaves | Approached by a straggling Scientist 1617 | -10/Subcaves | Shifting Twisted Machinery released Sub. Beam Cannon 1619 | -10/Subcaves | Shifting Twisted Machinery released Riot Gun 1677 | -10/Subcaves | Discovered new exit (range 13) 1747 | -10/Subcaves | Visited 4L-MR0's lab 1774 | -10/Subcaves | Found Gun Armor 2087 | -10/Subcaves | Shifting Twisted Machinery released Sub. Laser 2221 | -10/Subcaves | A swath of the cavern ceiling suddenly collapsed 2234 | -10/Subcaves | Shifting Twisted Machinery released Sub. Power Source 2417 | -10/Subcaves | Visited Clippyterm 2421 | -10/Subcaves | Learned Factory emergency access door positions 2733 | -10/Subcaves | Learned location of Zion (-6) 3050 | -10/Subcaves | Core integrity fell below 50% 3121 | -10/Subcaves | Disturbed a concealed Subdweller 3270 | -10/Subcaves | Shifting Twisted Machinery released Spk. Treads 3304 | -10/Subcaves | Shifting Twisted Machinery released Sub. Power Source 3382 | -10/Subcaves | A swath of the cavern ceiling suddenly collapsed 3764 | -10/Subcaves | Discovered new exit (range 14) 3788 | -10/Subcaves | Discovered new exit (range 14) 3807 | -10/Subcaves | Core integrity fell below 20% 3923 | -10/Subcaves | Entered Recycling 3924 | -7/Recycling | Met a Zionite searching for Scraptown 4194 | -7/Recycling | Destroyed by Y-54 Guardian with Flak Gun Last Messages --------------- Splicing P-60 Hacker... P-60 Hacker system inaccessible. P-60 Hacker springs to life. Splicing P-60 Hacker... P-60 Hacker system unaffected. Imp. Treads destroyed. FUP#E|9AX8E/D&WP5RMS Destroyed Gravmag System. P-60 Hacker destroyed. R-06 Scavenger collects Imp. Heat Sink. Acquired 38 matter. Acquired Remote Datajack. Acquired Unknown Protection. Identified Reactive Plating. R-06 Scavenger collects Imp. Sensor Array. System corrupted: Sub. Beam Cannon failed to cycle. Destroyed Com. Wheel. System corrupted: Matter fused (-7). R-06 Scavenger sends out distress signal. Acquired 17 matter. Map ----- +----------------------------------------------------+ | #??????????????????????????????????????????????? | | #??????????????????????????????????????????????? | | #??????????????????????????????????????????????? | | !!#??????????????????????????????????????????????? | | !#?######+#######???????????????????????????????? | | ###?# #???????????????????????????????? | | ????# #???????????????????????????????? | | ????# #???????????????????????????????? | | ????# #???????????????????????????????? | | ????# #???????????????????????????????? | | ????# #???????????????????????????????? | | ##### #???????????????????????????????? | | + + ?????????????????????????????? | | ##### #???????????????????????????????? | | ????# #???????????????????????????????? | | ##??# # #?????????????????????????? | | #??# / #??????????????????????????? | | #??#######+##/### #?????????????#???????????? | | #????????# ### ###????####### ##??????????? | | ##???????# ??????????? | | #???????# #???????????? | | ##???????# ##### r #???????????? | | #????????#+######+#######? r #???????????? | | #????????# hu l Y r #? r #???????????? | | #????????# !!b ul ] %i## #???????????? | | #????????# a! r %/@ #???????????? | | #????????#r]! Y #######"Y"#??????????????? | | ##????????###############????????????????????????? | | ?????????????????????????????????????????????????? | | ?????????????????????????????????????????????????? | | | | | | | | | | | | | | | | | | | | | | | | | | | | | | | | | | | | | | | | | +----------------------------------------------------+ Best States ------------- Heat Dissipation 25 Energy Generation 14 Energy Capacity 280 Matter Stores 300 Matter Capacity 300 Sight Range 16 Robot Scan Range 15 Terrain Scan Density 10 Armor Coverage 150 Resistance: KI 20 Evasion (%) 42 Recoil Reduction 2 Item Schematics ----------------- None Robot Schematics ------------------ None Fabricated ------------ Nothing Repaired ---------- Nothing Studied --------- None Alien Tech Used ----------------- None Achievements -------------- Art Critic root@ Challenges ------------ None Game ------ Seed NullMissileSegregator Manual? 0 Play Time 00:44:48 Cumulative 22.2 hours Start 2026.04.16 @ 21:04:02 End 2026.04.16 @ 21:49:25 Sessions 1 Manual Loads 0 Difficulty Rogue Special Mode None Game No. 15 Rogue 15 Adventurer 0 Explorer 0 Win Type - Total 0 Types 0/0/0/0/0/0/0/0/0/0 Lore% 15 Gallery% 19 Achievement% 19 Wizard Run 0 Options --------- Layout 0 ASCII 0 Keyboard 1 Movement Arrows Keybinds 0 Fullscreen 2 Font 18/SmallcapsGlow Map View 76x50 Zoom Use 0% Tactical HUD 0 Map Filters NONE Filters NONE Steam 1 RUN: a2f947a6-98d0-4700-bca5-1e8a5bf8800a